Cogmind - Beta 15 *** ADVENTURER MODE // 2025.05.30 @ 00:24:00 Player: Jack Result: Destroyed by S-43 Plague with Heavy Machine Gun Performance ------------- Evolutions (9) 4500 Regions Visited (28) 5600 Robots Destroyed (164) 820 Value Destroyed (5910) 5910 Prototype IDs (25) 500 Alien Tech Used (0) 0 Bonus (5270) 5270 TOTAL SCORE: 22600 Bonus ------- High Alert Combat Kills 97 Follower Combat Kills 1416 Aligned with FarCom 300 Met Warlord at Base 500 MAIN.C Attacked Warlord 500 Warlord Defense Kills 2022 Built Enhanced Grunts 300 A7 Reached Mainframe 300 Friendly Fire -165 Cogmind --------- Core Integrity 0/1600 Matter 300/300 Energy 99/100 System Corruption 11% Temperature Cool (0) Movement Core (50) Location -1/Access Parts ------- > --- POWER (2) -------- (None) > --- PROPULSION (8) --- (None) > --- UTILITY (13) ----- Enhanced Optical Array Improved Hacking Suite > --- WEAPON (2) ------- (None) > --- INVENTORY (5) ---- Backup Power VII Hypervelocity Gauss Cannon Hypervelocity Gauss Cannon Advanced Datajack Peak State ------------ > --- POWER ------------ Particle Reactor Light Quantum Reactor > --- PROPULSION ------- Gravmag Array Cooled Antigrav System Combat Antigrav System Combat Antigrav System Antigrav Array Combat Linear Gravjet > --- UTILITY ---------- Structural Scanner Enhanced Optical Array Advanced Targeting Computer Hacking Suite Improved Hacking Suite Improved Hacking Suite Improved Hacking Suite Improved System Shield > --- WEAPON ----------- Heavy Missile Launcher Phasing Sabre > --- INVENTORY -------- Hypervelocity Gauss Cannon Hypervelocity Gauss Cannon Advanced Datajack Phasing Sabre [Rating: 121] Favorites ----------- Power Light Ion Engine Engine Light Ion Engine Power Core Micro Fission Core Reactor Antimatter Reactor Propulsion Gravmag Array Leg Potential Leg Hover Unit Gravmag Array Flight Unit Flight Unit Utility Hacking Suite Device Structural Scanner Processor Advanced Targeting Computer Hackware Hacking Suite Weapon Hypervelocity Gauss Cannon Ballistic Gun Assault Rifle Ballistic Cannon Hypervelocity Gauss Cannon Launcher Heavy Missile Launcher Impact Weapon Powered Hammer Slashing Weapon Phasing Sabre Piercing Weapon Spear Build | -11 -10 -10 -9 -9 -9 -8 -8 -7 -7 -7 -6 -6 -6 -6 -6 -5 -5 -5 -5 -5 -4 -4 -4 -4 -4 -3 -2 -1 ------- Run | Yrd Mat Min Mat Min Exi Min Mat Fac Was Fac Fac Was Fac Low Zio Pro Fac Upp Upp War Pro Fac Ext Cet Arc Res Res Acc Slots Evolved 18 | . . . 2 . . . 2 2 . . 2 . . . . . 2 . . . . 2 . . . 2 2 2 Power 1 | . . . . . . . . . . . . . . . . . . . . . . . . . . . . 1 Propulsion 6 | . . . . . . . . . . . 2 . . . . . 2 . . . . . . . . 2 . . Utility 11 | . . . 2 . . . 2 2 . . . . . . . . . . . . . 2 . . . . 2 1 Weapon . | . . . . . . . . . . . . . . . . . . . . . . . . . . . . . Parts Attached 73 | . 5 3 . . 2 . 4 18 . 6 4 . 7 . . . 1 . . 2 . 3 1 . 6 2 5 4 Power 10 | . . . . . . . . 2 . . . . 2 . . . . . . 1 . 1 . . . 1 . 3 Engine 4 | . . . . . . . . 2 . . . . 1 . . . . . . . . . . . . . . 1 Core 2 | . . . . . . . . . . . . . 1 . . . . . . . . 1 . . . . . . Reactor 4 | . . . . . . . . . . . . . . . . . . . . 1 . . . . . 1 . 2 Propulsion 21 | . 2 2 . . 2 . . 1 . 3 2 . 2 . . . 1 . . . . . . . . 1 4 1 Treads . | . . . . . . . . . . . . . . . . . . . . . . . . . . . . . Leg 2 | . . . . . 2 . . . . . . . . . . . . . . . . . . . . . . . Wheel . | . . . . . . . . . . . . . . . . . . . . . . . . . . . . . Hover 15 | . . . . . . . . 1 . 3 2 . 2 . . . 1 . . . . . . . . 1 4 1 Flight 4 | . 2 2 . . . . . . . . . . . . . . . . . . . . . . . . . . Utility 26 | . . . . . . . 1 14 . . 2 . 1 . . . . . . . . 2 1 . 5 . . . Device 4 | . . . . . . . . 2 . . . . . . . . . . . . . 1 1 . . . . . Storage . | . . . . . . . . . . . . . . . . . . . . . . . . . . . . . Processor 5 | . . . . . . . . 2 . . 2 . . . . . . . . . . 1 . . . . . . Hackware 17 | . . . . . . . 1 10 . . . . 1 . . . . . . . . . . . 5 . . . Protection . | . . . . . . . . . . . . . . . . . . . . . . . . . . . . . Artifact . | . . . . . . . . . . . . . . . . . . . . . . . . . . . . . Weapon 16 | . 3 1 . . . . 3 1 . 3 . . 2 . . . . . . 1 . . . . 1 . 1 . Energy Gun . | . . . . . . . . . . . . . . . . . . . . . . . . . . . . . Energy Cannon . | . . . . . . . . . . . . . . . . . . . . . . . . . . . . . Ballistic Gun 6 | . 2 1 . . . . 2 . . . . . . . . . . . . . . . . . . . 1 . Ballistic Cannon 2 | . . . . . . . . . . 2 . . . . . . . . . . . . . . . . . . Launcher 2 | . 1 . . . . . . . . . . . 1 . . . . . . . . . . . . . . . Special Weapon . | . . . . . . . . . . . . . . . . . . . . . . . . . . . . . Impact Weapon 1 | . . . . . . . 1 . . . . . . . . . . . . . . . . . . . . . Slashing Weapon 4 | . . . . . . . . 1 . 1 . . . . . . . . . 1 . . . . 1 . . . Piercing Weapon 1 | . . . . . . . . . . . . . 1 . . . . . . . . . . . . . . . Special Melee Weapon . | . . . . . . . . . . . . . . . . . . . . . . . . . . . . . Unidentified Prototypes 2 | . . . . . . . . . . 1 . . . . . . . . . . . . . . . 1 . . Parts Lost 28 | . 1 1 1 . . . . 1 . . . . 1 . . . . . . . 1 1 2 . . 1 1 17 Power 6 | . . . . . . . . 1 . . . . . . . . . . . . . . . . . . . 5 Propulsion 5 | . 1 . . . . . . . . . . . 1 . . . . . . . . . . . . . . 3 Utility 12 | . . . . . . . . . . . . . . . . . . . . . 1 1 2 . . 1 1 6 Weapon 5 | . . 1 1 . . . . . . . . . . . . . . . . . . . . . . . . 3 Highest Loss Streak 12 | . 1 1 1 . . . . 1 . . . . 1 . . . . . . . 1 1 1 . . 1 1 12 To Critical Strikes . | . . . . . . . . . . . . . . . . . . . . . . . . . . . . . Average Backups 4 | 1 2 4 5 5 5 5 5 4 4 4 3 4 4 4 4 4 3 4 4 4 5 4 5 5 5 5 5 4 Power . | . . . . . . . . . . . . . . . . . . . . . . . . . . . . . Propulsion . | . . 2 3 3 3 3 3 3 2 1 . . . 1 1 1 . . . . 1 1 1 1 . . . . Utility . | . . . . . . . . . . . . 1 . . . . . 1 1 1 1 . 1 1 1 1 . . Weapon 2 | 1 2 1 2 2 2 2 2 1 2 2 3 3 2 3 3 3 3 3 3 3 3 2 3 3 3 3 3 3 Tool/Special . | . . . . . . . . . . . . . . . . . . . . . . . . . . . . . Unused Backups 8 | . . . . 1 . . . 2 1 . . . 1 . . . . . . . . 1 . . 1 . . 1 Power . | . . . . . . . . . . . . . . . . . . . . . . . . . . . . . Propulsion 4 | . . . . . . . . 2 1 . . . . . . . . . . . . . . . 1 . . . Utility 2 | . . . . . . . . . . . . . 1 . . . . . . . . 1 . . . . . . Weapon 1 | . . . . 1 . . . . . . . . . . . . . . . . . . . . . . . . Tool/Special 1 | . . . . . . . . . . . . . . . . . . . . . . . . . . . . 1 Average Slot Usage (%) 72 | . 28 44 44 33 33 33 41 72 89 98 92 93 87 86 86 86 82 81 82 82 80 69 71 63 77 77 68 60 Engine 1 | . . . . . . . . 5 7 6 6 6 3 . . . . . . . . . . . . . . . Core 1 | . . . . . . . . . . . . . 2 6 6 6 5 5 5 3 . . 5 5 5 1 . 1 Reactor 1 | . . . . . . . . . . . . . . . . . . . . 1 5 4 . . . 2 4 5 Leg 2 | . . . . . 13 22 18 14 10 10 . . . . . . . . . . . . . . . . . . Hover 12 | . . . . . . . . . 1 3 19 20 14 13 13 13 17 17 17 17 17 14 15 15 15 18 20 21 Flight 1 | . 5 16 22 22 8 . . . . . . . . . . . . . . . . . . . . . . . Device 4 | . . . . . . . . 6 7 7 6 6 6 6 6 6 5 5 5 5 5 4 4 5 5 4 4 3 Processor 7 | . . . . . . . . 2 . . 9 13 13 13 13 13 11 11 11 11 9 8 10 10 10 9 8 7 Hackware 26 | . . . . . . . 6 32 53 53 36 33 33 33 33 33 29 29 29 29 29 26 24 15 29 30 21 17 Ballistic Gun 2 | . 22 28 22 11 11 11 12 2 . . . . . . . . . . . . . . . . . . . . Ballistic Cannon 4 | . . . . . . . . . . 8 6 6 5 6 6 6 5 4 5 5 5 5 6 10 3 6 3 . Slashing Weapon 3 | . . . . . . . . 5 7 5 6 6 3 . . . . . . 1 5 5 3 . 6 2 4 3 Peak Build Rating 121 | . 4 4 4 4 22 22 32 52 49 57 51 51 61 61 61 61 70 70 70 75 75 81 76 70 90 101 115 121 Average Rating 63 | . 2 3 3 3 14 22 30 42 45 51 50 51 55 61 61 61 70 69 70 72 74 73 75 70 84 98 103 102 On Entrance 49 | . . 3 4 3 4 22 22 32 39 49 42 51 51 61 61 61 61 70 70 70 75 72 75 70 70 90 98 108 Naked Turns 57 | . 57 . . . . . . . . . . . . . . . . . . . . . . . . . . . Heaviest Build 45 | . 3 3 3 2 2 2 8 12 7 24 16 16 20 20 20 20 20 20 20 31 31 34 26 26 26 39 33 45 Greatest Support 105 | 3 8 8 8 8 60 60 60 60 60 60 38 38 40 40 40 40 60 60 60 60 60 60 60 60 60 73 105 105 Greatest Overweight (x) 6 | . . . . . . . . . . 2 . . . . . . . . . 6 . . 6 . . . . 1 Average Overweight (x) . | . . . . . . . . . . . . . . . . . . . . . . . . . . . . . Largest Inventory Capacity 5 | 5 5 5 5 5 5 5 5 5 5 5 5 5 5 5 5 5 5 5 5 5 5 5 5 5 5 5 5 5 Average Capacity 5 | 5 5 5 5 5 5 5 5 5 5 5 5 5 5 5 5 5 5 5 5 5 5 5 5 5 5 5 5 5 Most Carried 5 | 3 4 5 5 5 5 5 5 5 5 5 5 4 5 5 5 5 4 5 4 5 5 5 5 5 5 5 5 5 Average Carried 4 | 1 2 4 5 5 5 5 5 4 4 5 3 4 4 5 5 5 3 4 4 4 5 4 5 5 4 5 4 4 Final Capacity 5 | 5 5 5 5 5 5 5 5 5 5 5 5 5 5 5 5 5 5 5 5 5 5 5 5 5 5 5 5 5 Final Carried 5 | 3 4 5 5 5 5 5 5 5 5 5 4 4 5 5 5 5 4 4 4 5 5 5 5 5 5 5 5 4 Class Distribution -------------------- 43% | Wizard-Mutant 24% | Wizard-Scout 9% | Mutant 9% | Hacker-Mutant 5% | Commander-Scout 4% | Hacker-Scout Dominant Class ---------------- Mutant | -10/Materials Mutant | -10/Mines Mutant | -9/Materials Mutant | -9/Mines Mutant | -9/Exiles Mutant | -8/Mines Hacker-Mutant | -8/Materials Hacker-Mutant | -7/Factory Wizard-Mutant | -7/Waste Wizard-Mutant | -7/Factory Wizard-Mutant | -6/Factory Wizard-Mutant | -6/Waste Wizard-Mutant | -6/Factory Wizard-Mutant | -6/Lower Caves Wizard-Mutant | -6/Zion Wizard-Mutant | -5/Proximity Caves Wizard-Mutant | -5/Factory Wizard-Mutant | -5/Upper Caves Wizard-Mutant | -5/Upper Caves Wizard-Mutant | -5/Warlord Wizard-Mutant | -4/Proximity Caves Wizard-Scout | -4/Factory Wizard-Scout | -4/Extension Commander-Scout | -4/Cetus Wizard-Scout | -4/Archives Wizard-Scout | -3/Research Wizard-Scout | -2/Research Wizard-Scout | -1/Access Resources | -11 -10 -10 -9 -9 -9 -8 -8 -7 -7 -7 -6 -6 -6 -6 -6 -5 -5 -5 -5 -5 -4 -4 -4 -4 -4 -3 -2 -1 ----------- Run | Yrd Mat Min Mat Min Exi Min Mat Fac Was Fac Fac Was Fac Low Zio Pro Fac Upp Upp War Pro Fac Ext Cet Arc Res Res Acc Matter Collected 4666 | 200 116 56 . 11 . . 68 255 49 312 365 . 494 . . 59 41 93 89 556 74 318 742 96 140 278 113 141 Remotely . | . . . . . . . . . . . . . . . . . . . . . . . . . . . . . Salvage Created 6698 | . 179 56 . . . . 89 548 49 318 349 . 744 . . 46 41 155 42 911 120 530 1374 251 380 227 52 237 Parts 376 | . 10 9 . . . . 4 44 4 22 25 . 42 . . 3 5 9 1 27 8 20 57 16 30 11 4 25 Haulers Intercepted 1 | . . . . . . . . 1 . . . . . . . . . . . . . . . . . . . . Recyclers Shooed 4 | . . . . . . . . . . 1 1 . 2 . . . . . . . . . . . . . . . Parts Field Recycled . | . . . . . . . . . . . . . . . . . . . . . . . . . . . . . Retrieved Matter . | . . . . . . . . . . . . . . . . . . . . . . . . . . . . . Parts Self-Destructed 12 | . . . . . . . . . . . . . . . . 3 . 4 1 . 4 . . . . . . . Prevented . | . . . . . . . . . . . . . . . . . . . . . . . . . . . . . Kills | -11 -10 -10 -9 -9 -9 -8 -8 -7 -7 -7 -6 -6 -6 -6 -6 -5 -5 -5 -5 -5 -4 -4 -4 -4 -4 -3 -2 -1 ------- Run | Yrd Mat Min Mat Min Exi Min Mat Fac Was Fac Fac Was Fac Low Zio Pro Fac Upp Upp War Pro Fac Ext Cet Arc Res Res Acc Combat Hostiles Destroyed 103 | . 6 3 . . . . . 3 1 1 3 . 11 . . 1 . 6 1 17 6 8 18 3 2 3 2 8 Melee 3 | . . . . . . . . . 1 . . . . . . . . . . . . . . . . . . 2 Guns 12 | . 6 3 . . . . . 3 . . . . . . . . . . . . . . . . . . . . Cannons 59 | . . . . . . . . . . 1 3 . 4 . . 1 . 1 1 16 1 8 15 3 2 3 . . AOE 29 | . . . . . . . . . . . . . 7 . . . . 5 . 1 5 . 3 . . . 2 6 Classes Destroyed 16 | . 2 . . . . . 2 4 1 2 1 . . . . 1 . 1 . 2 . . . . . . . . Worker 7 | . . . . . . . . 2 . 3 . . 1 . . . . . . . . . 1 . . . . . Builder 21 | . . . . . . . . 6 . 3 1 . 5 . . . 1 . . . . 1 1 . . 2 1 . Tunneler 5 | . . . . . . . . 1 . . 1 . 1 . . . 1 . . . . . . . . . . 1 Hauler 1 | . . . . . . . . 1 . . . . . . . . . . . . . . . . . . . . Recycler 13 | . . . . . . . 1 3 . 2 1 . 3 . . . . . . . . . 3 . . . . . Operator 11 | . . . . . . . 1 1 . 1 2 . . . . . . . . . . . . . 6 . . . Watcher 2 | . . . . . . . . . . 1 . . . . . . . . . . . . . 1 . . . . Swarmer 39 | . 3 3 . . . . . 3 . . . . 8 . . . . 5 . . 5 . 4 . . . 2 6 Grunt 18 | . 3 . . . . . . . . . 1 . 2 . . . . . . 4 . 6 2 . . . . . Brawler 3 | . . . . . . . . . . . . . . . . . . . . 3 . . . . . . . . Duelist 2 | . . . . . . . . . . . . . . . . . . . . 1 . 1 . . . . . . Protector 4 | . . . . . . . . . 1 . . . . . . . . . . 3 . . . . . . . . Sentry 13 | . . . . . . . . . . . 1 . . . . . . . . . 1 . 8 . 2 1 . . Demolisher 3 | . . . . . . . . . . . . . . . . . . . . 3 . . . . . . . . Hunter 6 | . . . . . . . . . . . . . . . . 1 . 1 1 1 . . 1 . . 1 . . Programmer 11 | . . . . . . . . . . 1 1 . 1 . . . . . . 2 . 1 2 . . 1 . 2 Cetus Guard 3 | . . . . . . . . . . . . . . . . . . . . . . . . 3 . . . . Savage 2 | . . . . . . . . . . . . . . . . . . 1 . . . . 1 . . . . . Best Kill Streak 8 | . 4 3 . . . . 1 4 1 7 3 . 8 . . 1 1 5 1 5 5 4 7 8 4 2 3 6 Combat Bots Only 8 | . 4 3 . . . . . 3 1 1 1 . 8 . . 1 . 5 1 5 5 3 6 3 2 1 2 6 Max Kills in Single Turn 5 | . 1 2 . . . . 1 2 1 1 1 . 5 . . 1 1 3 1 2 3 1 4 2 1 1 3 2 Gunslinging 1 | . . 1 . . . . . . . . . . . . . . . . . . . . . . . . . . Exploded 5 | . . . . . . . . . . . . . 5 . . . . 3 . 1 3 . 3 . . . 2 2 Melee 1 | . . . . . . . . . 1 . . . . . . . . . . . . . . . . . . 1 Uniques/NPCs Destroyed . | . . . . . . . . . . . . . . . . . . . . . . . . . . . . . Combat | -11 -10 -10 -9 -9 -9 -8 -8 -7 -7 -7 -6 -6 -6 -6 -6 -5 -5 -5 -5 -5 -4 -4 -4 -4 -4 -3 -2 -1 -------- Run | Yrd Mat Min Mat Min Exi Min Mat Fac Was Fac Fac Was Fac Low Zio Pro Fac Upp Upp War Pro Fac Ext Cet Arc Res Res Acc Hostile Shots Fired 710 | . 41 19 6 . . 9 18 23 . 38 8 . 50 . . 12 . 13 4 35 21 35 36 . 3 8 21 310 Missed 303 | . 14 6 . . . 5 12 10 . 18 5 . 19 . . 6 . 5 1 17 8 20 10 . . 5 7 135 Hits 407 | . 27 13 6 . . 4 6 13 . 20 3 . 31 . . 6 . 8 3 18 13 15 26 . 3 3 14 175 Melee 1 | . . . . . . . . . . . . . . . . . . . . . . . 1 . . . . . Projectile 406 | . 27 13 6 . . 4 6 13 . 20 3 . 31 . . 6 . 8 3 18 13 15 25 . 3 3 14 175 AOE 1 | . . . . . . . . . . . . . . . . . . . . 1 . . . . . . . . Critical Strikes 15 | . . . . . . . . 1 . 1 1 . . . . . . . . . 1 1 6 . . . 1 3 Part Disruptions 2 | . . . . . . . . . . 1 . . . . . . . . . . . . . . . . . 1 Damage Taken 6284 | . 273 74 69 . . 47 74 208 . 231 43 . 397 . . 71 . 94 46 342 194 228 468 11 56 70 301 2987 Core 2426 | . 127 26 33 . . 25 11 75 . 71 . . 59 . . . . . . 111 42 14 153 . 19 18 34 1608 Absorbed by Shields 142 | . . . . . . . . . . . . . . . . . . . . 75 . . 56 11 . . . . Ignored by Resistances 1796 | . 82 26 20 . . 15 21 59 . 66 11 . 117 . . 20 . 26 13 115 55 67 148 6 16 19 81 813 Regen/Repaired (Parts) 808 | . . . . . . . . . . . . . 107 . . . . . . 52 . 605 . . . . 44 . Core Remaining (%) 85 | 100 . 38 . . . 85 98 . . 79 . . . . . 93 . . . . 84 . . . 83 98 97 . Volleys Fired 340 | . 17 5 . . . . 1 10 . 36 20 . 36 . . 6 . 10 5 67 6 30 47 6 4 18 11 5 Largest 2 | . 2 2 . . . . 2 2 . 2 1 . 1 . . 1 . 1 1 1 1 1 2 2 2 2 1 1 Hottest 102 | . 40 40 . . . . 56 56 . 102 51 . 51 . . 51 . 51 51 51 51 51 102 102 102 102 51 39 Shots Fired 426 | . 33 8 . . . . 2 20 . 50 20 . 37 . . 6 . 10 5 67 6 30 66 12 8 30 11 5 Gun 65 | . 32 8 . . . . 2 20 . . . . . . . . . . . . . . . . . . 3 . Cannon 339 | . . . . . . . . . . 50 20 . 35 . . 6 . 6 5 67 4 30 59 12 8 30 7 . Launcher 22 | . 1 . . . . . . . . . . . 2 . . . . 4 . . 2 . 7 . . . 1 5 Special . | . . . . . . . . . . . . . . . . . . . . . . . . . . . . . Kinetic 404 | . 32 8 . . . . 2 20 . 50 20 . 35 . . 6 . 6 5 67 4 30 59 12 8 30 10 . Thermal . | . . . . . . . . . . . . . . . . . . . . . . . . . . . . . Explosive 22 | . 1 . . . . . . . . . . . 2 . . . . 4 . . 2 . 7 . . . 1 5 Electromagnetic . | . . . . . . . . . . . . . . . . . . . . . . . . . . . . . Robot Hit Streak 29 | . 11 3 . . . . 3 7 . 6 8 . 29 . . 7 . 12 17 23 4 15 21 7 9 10 17 18 Robot Miss Streak 8 | . 2 3 . . . . 2 8 . 3 3 . 1 . . 1 . . . 2 2 1 2 2 . 2 . . Penetration Max 1 | . . . . . . . . . . 1 . . 1 . . . . . . 1 . . 1 1 . . . . Secondary Targets 1 | . . 1 . . . . . . . . . . . . . . . . . . . . . . . . . . Max Gunslinging Chain 1 | . . 1 . . . . . . . . . . . . . . . . . . . . . . . . . . Shots Hit Robots 373 | . 21 4 . . . . 3 26 3 46 17 . 42 . . 5 4 8 5 42 4 25 51 9 16 20 10 12 Core Hits 243 | . 11 4 . . . 1 4 33 2 12 9 . 33 . . 2 1 8 1 24 7 13 33 5 8 10 8 14 Critical Kills 59 | . . . . . . . . . . 1 3 . 6 . . 1 . 2 1 15 1 6 13 4 2 4 . . Critical Parts Destroyed 80 | . . . . . . . . . . 7 6 . 12 . . 3 . . 2 13 1 12 13 2 1 7 1 . Critical Strikes 153 | . . . . . . . . . 1 8 9 . 20 . . 4 1 2 3 31 2 18 27 7 4 11 2 3 Destroy 145 | . . . . . . . . . . 8 9 . 18 . . 4 . 2 3 31 2 18 27 7 4 11 1 . Sever 5 | . . . . . . . . . 1 . . . . . . . . . . . . . . . . . 1 3 Impale 3 | . . . . . . . . . . . . . 2 . . . 1 . . . . . . . . . . . Melee Attacks 224 | . . . . . . . 2 40 3 25 19 . 28 . . 3 10 2 . . 2 13 11 . 10 4 9 43 Impact 4 | . . . . . . . 2 2 . . . . . . . . . . . . . . . . . . . . Slashing 192 | . . . . . . . . 38 3 25 19 . 15 . . . . . . . 2 13 11 . 10 4 9 43 Piercing 28 | . . . . . . . . . . . . . 13 . . 3 10 2 . . . . . . . . . . Sneak Attacks 47 | . . . . . . . 1 9 1 10 5 . 6 . . . 3 . . . . . 4 . 6 . 1 1 Combat Hostiles . | . . . . . . . . . . . . . . . . . . . . . . . . . . . . . Follow-up Attacks 1 | . . . . . . . . . . . . . . . . . . . . . . . . . 1 . . . Damage Inflicted 12604 | . 242 34 . . . 19 106 1029 168 1335 600 . 1427 . . 61 211 656 61 947 519 497 1639 164 918 378 509 1084 Guns 581 | . 234 34 . . . . 33 263 . . . . . . . . . . . . . . . . . . 17 . Cannons 4553 | . . . . . . . . . . 455 250 . 594 . . 61 . 92 61 947 31 455 835 164 116 378 114 . Explosions 2631 | . . . . . . . . . . . . . 430 . . . . 564 . . 488 . 341 . . . 256 552 Melee 4792 | . . . . . . . 73 766 168 880 350 . 403 . . . 211 . . . . 42 463 . 802 . 122 512 Ramming 47 | . 8 . . . . 19 . . . . . . . . . . . . . . . . . . . . . 20 Kinetic 5134 | . 234 34 . . . . 33 263 . 455 250 . 594 . . 61 . 92 61 947 31 455 835 164 116 378 131 . Thermal . | . . . . . . . . . . . . . . . . . . . . . . . . . . . . . Explosive 2631 | . . . . . . . . . . . . . 430 . . . . 564 . . 488 . 341 . . . 256 552 Electromagnetic . | . . . . . . . . . . . . . . . . . . . . . . . . . . . . . Impact 73 | . . . . . . . 73 . . . . . . . . . . . . . . . . . . . . . Slashing 4231 | . . . . . . . . 766 168 880 350 . 126 . . . . . . . . 42 463 . 802 . 122 512 Piercing 488 | . . . . . . . . . . . . . 277 . . . 211 . . . . . . . . . . . Highest Corruption 11 | . . . . . . . 2 1 7 8 1 7 8 8 8 . . . . 2 2 1 1 1 1 1 . 11 Average Corruption 3 | . . . . . . . 1 1 5 7 1 5 7 8 8 . . . . 1 2 1 1 1 1 1 . 3 Corruption Purged . | . . . . . . . . . . . . . . . . . . . . . . . . . . . . . Corruption Blocked . | . . . . . . . . . . . . . . . . . . . . . . . . . . . . . Effects 83 | . . . . . . . . 3 3 19 1 2 22 1 1 . . . . 2 2 1 17 2 2 . . 5 Message Errors 17 | . . . . . . . . . . 4 1 . 4 1 . . . . . . . 1 5 1 . . . . Matter Fused 22 | . . . . . . . . . 3 4 . 2 4 . 1 . . . . . . . 6 1 . . . 1 Heat Flow Errors 11 | . . . . . . . . 3 . 1 . . 5 . . . . . . . 1 . . . . . . 1 Energy Discharges 8 | . . . . . . . . . . 3 . . 1 . . . . . . . . . 2 . 1 . . 1 Parts Rejected 3 | . . . . . . . . . . 1 . . . . . . . . . . . . 2 . . . . . Data Loss (minor) 11 | . . . . . . . . . . 4 . . 5 . . . . . . . . . 1 . 1 . . . Data Loss (major) 7 | . . . . . . . . . . . . . 2 . . . . . . 2 1 . 1 . . . . 1 Misfires 1 | . . . . . . . . . . . . . 1 . . . . . . . . . . . . . . . Alerts 1 | . . . . . . . . . . 1 . . . . . . . . . . . . . . . . . . Misdirections 1 | . . . . . . . . . . . . . . . . . . . . . . . . . . . . 1 Weapon Failures 1 | . . . . . . . . . . 1 . . . . . . . . . . . . . . . . . . Overload Shots . | . . . . . . . . . . . . . . . . . . . . . . . . . . . . . Overflow Damage 1197 | . . . . . . . . 146 13 299 47 . 130 . . . 34 65 . 5 35 . 145 . 230 . . 48 Projectiles 5 | . . . . . . . . . . . . . . . . . . . . 5 . . . . . . . . Explosions 128 | . . . . . . . . . . . . . . . . . . 65 . . 35 . 2 . . . . 26 Melee 1064 | . . . . . . . . 146 13 299 47 . 130 . . . 34 . . . . . 143 . 230 . . 22 Knockbacks 18 | . . . . . . 1 . . . 4 1 . 4 . . . . . . 1 . 1 3 . . 3 . . Impact 1 | . . . . . . 1 . . . . . . . . . . . . . . . . . . . . . . Kinetic 16 | . . . . . . . . . . 4 1 . 3 . . . . . . 1 . 1 3 . . 3 . . Secondary 1 | . . . . . . . . . . . . . 1 . . . . . . . . . . . . . . . Self-Inflicted Damage 36 | . 3 . . . . . . . . . . . . . . . . . . . . . . . . . . 33 Shots 1 | . . . . . . . . . . . . . . . . . . . . . . . . . . . . 1 Rammed 5 | . 3 . . . . . . . . . . . . . . . . . . . . . . . . . . 2 Targets Rammed 6 | . 3 . . . . 1 . . . . . . . . . . . . . . . . . . . . . 2 Kicked 1 | . . . . . . 1 . . . . . . . . . . . . . . . . . . . . . . Crushed . | . . . . . . . . . . . . . . . . . . . . . . . . . . . . . Highest Temperature 259 | . 4 . . . . . . 242 . 196 15 . 259 . . . . . 2 3 123 21 60 44 30 30 . 138 Average Temperature 32 | . 2 . . . . . . 117 . 30 13 . 91 . . . . . 1 2 60 16 17 20 13 11 . 11 Received Heat Transfer 918 | . 159 . 27 . . 36 54 81 . 126 18 . 57 . . . . . . . . 33 161 4 . . 27 135 Siege Activations . | . . . . . . . . . . . . . . . . . . . . . . . . . . . . . Martial Activations . | . . . . . . . . . . . . . . . . . . . . . . . . . . . . . Shielding Activations . | . . . . . . . . . . . . . . . . . . . . . . . . . . . . . Robots Disrupted . | . . . . . . . . . . . . . . . . . . . . . . . . . . . . . Combat Hostiles . | . . . . . . . . . . . . . . . . . . . . . . . . . . . . . Robots Corrupted . | . . . . . . . . . . . . . . . . . . . . . . . . . . . . . Combat Hostiles . | . . . . . . . . . . . . . . . . . . . . . . . . . . . . . Parts Fried 1 | . . . . . . . . . . . . . . . . . . . . . . 1 . . . . . . Impact Corruptions . | . . . . . . . . . . . . . . . . . . . . . . . . . . . . . Robots Melted . | . . . . . . . . . . . . . . . . . . . . . . . . . . . . . Combat Hostiles . | . . . . . . . . . . . . . . . . . . . . . . . . . . . . . Parts Melted . | . . . . . . . . . . . . . . . . . . . . . . . . . . . . . Heat Transferred . | . . . . . . . . . . . . . . . . . . . . . . . . . . . . . Parts Sabotaged . | . . . . . . . . . . . . . . . . . . . . . . . . . . . . . Parts Stolen . | . . . . . . . . . . . . . . . . . . . . . . . . . . . . . Parts Stripped . | . . . . . . . . . . . . . . . . . . . . . . . . . . . . . Power Chain Reactions . | . . . . . . . . . . . . . . . . . . . . . . . . . . . . . Alert | -11 -10 -10 -9 -9 -9 -8 -8 -7 -7 -7 -6 -6 -6 -6 -6 -5 -5 -5 -5 -5 -4 -4 -4 -4 -4 -3 -2 -1 ------- Run | Yrd Mat Min Mat Min Exi Min Mat Fac Was Fac Fac Was Fac Low Zio Pro Fac Upp Upp War Pro Fac Ext Cet Arc Res Res Acc Maximum Alert Level 2 | . . . . . . . . . . . . . . . . . . . . . . 2 2 1 . 1 1 1 Low Security (%) 77 | 100 100 100 100 100 . 100 100 100 100 100 100 100 100 . . . 100 . . . . . 82 18 100 77 54 58 Level 1 17 | . . . . . . . . . . . . . . . . . . . . . . 45 16 81 . 22 45 41 Level 2 5 | . . . . . . . . . . . . . . . . . . . . . . 54 1 . . . . . Level 3 . | . . . . . . . . . . . . . . . . . . . . . . . . . . . . . Level 4 . | . . . . . . . . . . . . . . . . . . . . . . . . . . . . . Level 5 . | . . . . . . . . . . . . . . . . . . . . . . . . . . . . . High Security . | . . . . . . . . . . . . . . . . . . . . . . . . . . . . . Max Security . | . . . . . . . . . . . . . . . . . . . . . . . . . . . . . Peak Influence 638 | . 125 60 13 50 . 45 11 121 21 181 74 5 178 . . . 16 . . . . 638 472 306 179 294 294 322 Initial 638 | . . 30 13 . . . 11 . 16 . 64 5 . . . . . . . . . 638 152 225 57 37 99 39 Average 128 | . 61 17 9 9 . 13 2 62 7 48 16 1 76 . . . 2 . . . . 450 155 232 147 116 182 134 Influence Increases 6607 | . 242 70 . 60 . 45 17 606 5 356 125 . 388 . . 30 29 155 30 649 130 863 1040 135 162 558 297 615 Destroy 0b10 Robot/C 2520 | . 120 60 . . . . . 60 . 20 60 . 220 . . 20 . 120 20 300 120 160 560 80 80 240 120 160 Destroy 0b10 Robot/NC 330 | . . . . . . . 10 65 5 50 25 . 50 . . . 10 . . 20 . 5 25 5 30 20 5 5 Destroy Leader 344 | . 30 10 . . . . . 12 . 12 20 . 40 . . 10 . 20 10 . 10 10 60 . . 60 20 20 Allied During Kill 558 | . . . . . . . . . . . . . . . . . . . . 14 . . 263 42 52 155 32 . Successful Hack 121 | . . . . . . . 6 66 . 10 7 . 10 . . . . . . . . 2 . 4 . . . 16 Disable Machine 36 | . 9 . . . . . . . . . . . . . . . 9 . . . . . 9 . . . 9 . Destroy Structure 523 | . 8 . . . . . 1 28 . 9 13 . 23 . . . 10 . . . . 26 108 4 . 68 111 114 Advance Influence 600 | . . . . . . . . . . . . . . . . . . . . . . 600 . . . . . . Partial Spotted 105 | . 45 . . . . . . 15 . . . . 15 . . . . . . . . . 15 . . 15 . . Lose Combat Pursuer 1470 | . 30 . . 60 . 45 . 360 . 255 . . 30 . . . . 15 . 315 . 60 . . . . . 300 Influence Decreases 6362 | . 150 122 40 20 40 10 52 548 63 203 258 20 290 55 43 30 29 60 117 328 389 572 939 427 213 473 425 446 Entered New Map 1566 | . . 62 27 . 40 . 24 . 42 . 89 15 . 45 43 . . . 27 8 329 32 209 237 113 82 105 37 Time Decay 3856 | . 140 60 3 20 . 10 28 538 21 203 169 5 280 10 . 30 29 60 90 240 50 380 570 150 100 181 250 239 Search Patrol Dispatched 150 | . . . . . . . . . . . . . . . . . . . . . . 150 . . . . . . Lost Part 270 | . 10 . 10 . . . . 10 . . . . 10 . . . . . . . 10 10 20 . . 10 10 170 Lost Ally 520 | . . . . . . . . . . . . . . . . . . . . 80 . . 140 40 . 200 60 . Squads Dispatched 42 | . 1 . 1 . . . 2 9 . 5 4 . 3 . . . 2 . . . . 2 3 . . 3 1 6 Investigation 15 | . 1 . . . . . 1 5 . 1 1 . 1 . . . . . . . . 1 1 . . 2 . 1 Extermination 11 | . . . . . . . . 4 . 1 1 . 1 . . . . . . . . 1 . . . 1 . 2 Reinforcement 14 | . . . 1 . . . 1 . . 3 1 . 1 . . . 2 . . . . . 2 . . . 1 2 Assault 1 | . . . . . . . . . . . . . . . . . . . . . . . . . . . . 1 Garrison 1 | . . . . . . . . . . . 1 . . . . . . . . . . . . . . . . . Intercept . | . . . . . . . . . . . . . . . . . . . . . . . . . . . . . Searches Triggered 1 | . . . . . . . . . . . . . . . . . . . . . . 1 . . . . . . Construction Impeded 4 | . . . . . . . . . . 1 . . 1 . . . 1 . . . . . . . . . . 1 Haulers Reinforced 1 | . . . . . . . . . . . . . . . . . . . . . . . . . . . 1 . Active Scanning Responses . | . . . . . . . . . . . . . . . . . . . . . . . . . . . . . Cargo Convoy Interrupts . | . . . . . . . . . . . . . . . . . . . . . . . . . . . . . Stealth | -11 -10 -10 -9 -9 -9 -8 -8 -7 -7 -7 -6 -6 -6 -6 -6 -5 -5 -5 -5 -5 -4 -4 -4 -4 -4 -3 -2 -1 --------- Run | Yrd Mat Min Mat Min Exi Min Mat Fac Was Fac Fac Was Fac Low Zio Pro Fac Upp Upp War Pro Fac Ext Cet Arc Res Res Acc Distress Signals 18 | . 1 . . . . . 1 3 . 2 . . . . . . . . . 3 . 1 2 . . . 3 2 Communications Jammed . | . . . . . . . . . . . . . . . . . . . . . . . . . . . . . Distress Signals . | . . . . . . . . . . . . . . . . . . . . . . . . . . . . . Times Spotted 353 | . 17 3 4 2 . 6 13 26 7 24 4 4 14 . . 1 1 7 1 73 11 19 26 4 4 10 14 58 Peak Tracking Total 29 | . 5 3 4 2 . 3 11 5 6 7 2 4 6 . . 1 1 6 1 19 5 4 5 4 1 3 7 29 Tactical Retreats 44 | . 1 . . 2 . 1 . 10 . 7 . . 2 . . . . 1 . 7 . 6 . . . . . 7 Traps | -11 -10 -10 -9 -9 -9 -8 -8 -7 -7 -7 -6 -6 -6 -6 -6 -5 -5 -5 -5 -5 -4 -4 -4 -4 -4 -3 -2 -1 ------- Run | Yrd Mat Min Mat Min Exi Min Mat Fac Was Fac Fac Was Fac Low Zio Pro Fac Upp Upp War Pro Fac Ext Cet Arc Res Res Acc Traps Triggered 16 | . 3 . . . . . 3 3 . 1 1 . 1 . . . . . . . . 1 2 . . 1 . . Indirectly . | . . . . . . . . . . . . . . . . . . . . . . . . . . . . . Trap Hack Attempts . | . . . . . . . . . . . . . . . . . . . . . . . . . . . . . Triggered . | . . . . . . . . . . . . . . . . . . . . . . . . . . . . . Disarmed 4 | . . . . . . . . . . . . . . . . . . . . . . . 4 . . . . . Reprogrammed . | . . . . . . . . . . . . . . . . . . . . . . . . . . . . . Reused . | . . . . . . . . . . . . . . . . . . . . . . . . . . . . . Traps Extracted . | . . . . . . . . . . . . . . . . . . . . . . . . . . . . . Installed . | . . . . . . . . . . . . . . . . . . . . . . . . . . . . . Triggered . | . . . . . . . . . . . . . . . . . . . . . . . . . . . . . Machines | -11 -10 -10 -9 -9 -9 -8 -8 -7 -7 -7 -6 -6 -6 -6 -6 -5 -5 -5 -5 -5 -4 -4 -4 -4 -4 -3 -2 -1 ---------- Run | Yrd Mat Min Mat Min Exi Min Mat Fac Was Fac Fac Was Fac Low Zio Pro Fac Upp Upp War Pro Fac Ext Cet Arc Res Res Acc Machines Disabled 6 | . 1 . . . . . . . . . . . . . . . 1 . . 2 . . 1 . . . 1 . Max in Single Turn 1 | . 1 . . . . . . . . . . . . . . . 1 . . . . . 1 . . . . . Garrison Access 9 | . . . . . . . . 1 . 1 2 . 2 . . . . . . . . . . . . . 2 1 Machines Repaired . | . . . . . . . . . . . . . . . . . . . . . . . . . . . . . Machines Dismantled . | . . . . . . . . . . . . . . . . . . . . . . . . . . . . . Machines Sabotaged . | . . . . . . . . . . . . . . . . . . . . . . . . . . . . . Overloaded Fab Kills . | . . . . . . . . . . . . . . . . . . . . . . . . . . . . . Hacking | -11 -10 -10 -9 -9 -9 -8 -8 -7 -7 -7 -6 -6 -6 -6 -6 -5 -5 -5 -5 -5 -4 -4 -4 -4 -4 -3 -2 -1 --------- Run | Yrd Mat Min Mat Min Exi Min Mat Fac Was Fac Fac Was Fac Low Zio Pro Fac Upp Upp War Pro Fac Ext Cet Arc Res Res Acc Machines Accessed 56 | . . . . 1 1 . 2 9 . 5 4 . 7 . . . 1 1 . 2 . 6 10 1 . 1 2 3 Terminals 30 | . . . . . . . 2 3 . 3 1 . 3 . . . 1 . . . . 2 10 1 . 1 1 2 Fabricators 8 | . . . . . . . . 5 . 1 1 . 1 . . . . . . . . . . . . . . . Repair Stations 6 | . . . . . . . . . . . . . 1 . . . . . . . . 4 . . . . . 1 Recycling Units . | . . . . . . . . . . . . . . . . . . . . . . . . . . . . . Scanalyzers . | . . . . . . . . . . . . . . . . . . . . . . . . . . . . . Garrison Access 7 | . . . . . . . . 1 . 1 2 . 2 . . . . . . . . . . . . . 1 . Total Hacks 130 | . . . . 1 1 . 4 28 . 13 15 . 18 . . . 2 1 . 5 . 15 14 1 . 4 2 6 Successful 101 | . . . . 1 1 . 1 25 . 10 11 . 13 . . . 1 1 . 5 . 14 9 1 . 1 2 5 Failed 29 | . . . . . . . 3 3 . 3 4 . 5 . . . 1 . . . . 1 5 . . 3 . 1 Catastrophic 2 | . . . . . . . . . . . . . . . . . . . . . . . 1 . . . . 1 Database Lockouts . | . . . . . . . . . . . . . . . . . . . . . . . . . . . . . Manual 65 | . . . . . 1 . 4 11 . 9 12 . 11 . . . 2 . . . . 4 3 1 . 3 1 3 Terminals 68 | . . . . . . . 4 5 . 8 10 . 9 . . . 2 . . . . 5 14 1 . 4 1 5 Fabricators 33 | . . . . . . . . 22 . 4 3 . 4 . . . . . . . . . . . . . . . Repair Stations 13 | . . . . . . . . . . . . . 2 . . . . . . . . 10 . . . . . 1 Recycling Units . | . . . . . . . . . . . . . . . . . . . . . . . . . . . . . Scanalyzers . | . . . . . . . . . . . . . . . . . . . . . . . . . . . . . Garrison Access 8 | . . . . . . . . 1 . 1 2 . 3 . . . . . . . . . . . . . 1 . Terminal Hacks 49 | . . . . 1 1 . 1 3 . 5 6 . 6 . . . 1 1 . 5 . 4 9 1 . 1 1 3 Record 4 | . . . . . . . . . . . . . . . . . . . . 4 . . . . . . . . Part Schematic 4 | . . . . . . . 1 2 . . 1 . . . . . . . . . . . . . . . . . Open Door 9 | . . . . 1 . . . . . . . . . . . . . 1 . 1 . . 5 1 . . . . Level Access Points 6 | . . . . . . . . . . 1 1 . 1 . . . . . . . . . . . . 1 1 1 Branch Access Points 5 | . . . . . . . . . . . 1 . 1 . . . 1 . . . . 1 . . . . . 1 Machine Index 1 | . . . . . . . . . . . 1 . . . . . . . . . . . . . . . . . Terminal Index 3 | . . . . . . . . . . 1 . . 1 . . . . . . . . 1 . . . . . . Fabricator Index 2 | . . . . . . . . . . 1 . . . . . . . . . . . 1 . . . . . . Repair Station Index 3 | . . . . . . . . . . . . . 1 . . . . . . . . 1 . . . . . 1 Locate Traps 1 | . . . . . . . . 1 . . . . . . . . . . . . . . . . . . . . Disarm Traps 2 | . . . . . . . . . . . . . . . . . . . . . . . 2 . . . . . Recall Investigation 4 | . . . . . . . . . . 1 1 . 1 . . . . . . . . . 1 . . . . . Recall Reinforcements 4 | . . . . . . . . . . 1 1 . 1 . . . . . . . . . 1 . . . . . Proto ID Catalog 1 | . . . . . 1 . . . . . . . . . . . . . . . . . . . . . . . Fabricator Hacks 21 | . . . . . . . . 15 . 2 2 . 2 . . . . . . . . . . . . . . . Network Status 1 | . . . . . . . . 1 . . . . . . . . . . . . . . . . . . . . Load Schematic 12 | . . . . . . . . 9 . 1 1 . 1 . . . . . . . . . . . . . . . Build 8 | . . . . . . . . 5 . 1 1 . 1 . . . . . . . . . . . . . . . Repair Station Hacks 13 | . . . . . . . . . . . . . 2 . . . . . . . . 10 . . . . . 1 Scan Component 6 | . . . . . . . . . . . . . 1 . . . . . . . . 5 . . . . . . Repair 6 | . . . . . . . . . . . . . 1 . . . . . . . . 5 . . . . . . Refit 1 | . . . . . . . . . . . . . . . . . . . . . . . . . . . . 1 Recycling Unit Hacks . | . . . . . . . . . . . . . . . . . . . . . . . . . . . . . Scanalyzer . | . . . . . . . . . . . . . . . . . . . . . . . . . . . . . Garrison Access Hacks 7 | . . . . . . . . 1 . 1 2 . 2 . . . . . . . . . . . . . 1 . Seal Access 7 | . . . . . . . . 1 . 1 2 . 2 . . . . . . . . . . . . . 1 . Unauthorized Hacks 11 | . . . . . . . . 6 . 2 1 . 1 . . . . . . . . . . . . . . 1 Terminals 3 | . . . . . . . . 1 . 1 . . . . . . . . . . . . . . . . . 1 Assimilate 1 | . . . . . . . . 1 . . . . . . . . . . . . . . . . . . . . Botnet 1 | . . . . . . . . . . 1 . . . . . . . . . . . . . . . . . . Disrupt 1 | . . . . . . . . . . . . . . . . . . . . . . . . . . . . 1 Fabricators 8 | . . . . . . . . 5 . 1 1 . 1 . . . . . . . . . . . . . . . Prioritize 4 | . . . . . . . . 1 . 1 1 . 1 . . . . . . . . . . . . . . . Recompile 4 | . . . . . . . . 4 . . . . . . . . . . . . . . . . . . . . Repair Stations . | . . . . . . . . . . . . . . . . . . . . . . . . . . . . . Recycling Units . | . . . . . . . . . . . . . . . . . . . . . . . . . . . . . Scanalyzers . | . . . . . . . . . . . . . . . . . . . . . . . . . . . . . Garrison Access . | . . . . . . . . . . . . . . . . . . . . . . . . . . . . . Data Cores Recovered 3 | . . . . . . . 1 . . . 1 . . . . . . . . . . . . . . 1 . . Used 2 | . . . . . . . 1 . . . 1 . . . . . . . . . . . . . . . . . Hacking Detections 27 | . . . . . . . 2 4 . 3 1 . 4 . . . 1 . . . . 4 5 . . 1 . 2 Full Trace Events 8 | . . . . . . . 1 1 . 1 1 . 1 . . . . . . . . 1 . . . 1 . 1 Feedback Events 1 | . . . . . . . . . . . . . . . . . . . . . . . . . . 1 . . Hackware Fried 1 | . . . . . . . . . . . . . . . . . . . . . . . . . . 1 . . Feedback Blocked . | . . . . . . . . . . . . . . . . . . . . . . . . . . . . . Robot Schematics Acquired . | . . . . . . . . . . . . . . . . . . . . . . . . . . . . . Robots Built . | . . . . . . . . . . . . . . . . . . . . . . . . . . . . . Authchips . | . . . . . . . . . . . . . . . . . . . . . . . . . . . . . Time . | . . . . . . . . . . . . . . . . . . . . . . . . . . . . . Total Robot Build Rating . | . . . . . . . . . . . . . . . . . . . . . . . . . . . . . Part Schematics Acquired 4 | . . . . . . . 1 2 . . 1 . . . . . . . . . . . . . . . . . Parts Built 10 | . . . . . . . . 5 . 2 2 . 1 . . . . . . . . . . . . . . . Authchips 4 | . . . . . . . . 4 . . . . . . . . . . . . . . . . . . . . Time 172 | . . . . . . . . 87 . 26 36 . 23 . . . . . . . . . . . . . . . Total Part Build Rating 40 | . . . . . . . . 17 . 12 6 . 5 . . . . . . . . . . . . . . . Parts Repaired 6 | . . . . . . . . . . . . . 1 . . . . . . . . 5 . . . . . . Time 262 | . . . . . . . . . . . . . 28 . . . . . . . . 234 . . . . . . Parts Recycled . | . . . . . . . . . . . . . . . . . . . . . . . . . . . . . Recycled Matter . | . . . . . . . . . . . . . . . . . . . . . . . . . . . . . Retrieved Matter . | . . . . . . . . . . . . . . . . . . . . . . . . . . . . . Retrieved Components . | . . . . . . . . . . . . . . . . . . . . . . . . . . . . . Parts Scanalyzed . | . . . . . . . . . . . . . . . . . . . . . . . . . . . . . Part Schematics Acquired . | . . . . . . . . . . . . . . . . . . . . . . . . . . . . . Parts Damaged . | . . . . . . . . . . . . . . . . . . . . . . . . . . . . . Bothacking | -11 -10 -10 -9 -9 -9 -8 -8 -7 -7 -7 -6 -6 -6 -6 -6 -5 -5 -5 -5 -5 -4 -4 -4 -4 -4 -3 -2 -1 ------------ Run | Yrd Mat Min Mat Min Exi Min Mat Fac Was Fac Fac Was Fac Low Zio Pro Fac Upp Upp War Pro Fac Ext Cet Arc Res Res Acc Used RIF Installer . | . . . . . . . . . . . . . . . . . . . . . . . . . . . . . Robots Hacked . | . . . . . . . . . . . . . . . . . . . . . . . . . . . . . Non-combat . | . . . . . . . . . . . . . . . . . . . . . . . . . . . . . Combat . | . . . . . . . . . . . . . . . . . . . . . . . . . . . . . Robot Hacks Applied . | . . . . . . . . . . . . . . . . . . . . . . . . . . . . . Relay Couplers Released 2 | . . . . . . . . . . . . . . . . . . . . . . . . . . . 1 1 Machine Destruction 2 | . . . . . . . . . . . . . . . . . . . . . . . . . . . 1 1 Fabnet Peak Effective % . | . . . . . . . . . . . . . . . . . . . . . . . . . . . . . Robots Rewired 22 | . . . . . . . . . . . . . . . . . . . . 5 . . 17 . . . . . Allies Hacked . | . . . . . . . . . . . . . . . . . . . . . . . . . . . . . Hacks Repelled . | . . . . . . . . . . . . . . . . . . . . . . . . . . . . . Allies | -11 -10 -10 -9 -9 -9 -8 -8 -7 -7 -7 -6 -6 -6 -6 -6 -5 -5 -5 -5 -5 -4 -4 -4 -4 -4 -3 -2 -1 -------- Run | Yrd Mat Min Mat Min Exi Min Mat Fac Was Fac Fac Was Fac Low Zio Pro Fac Upp Upp War Pro Fac Ext Cet Arc Res Res Acc Total Allies 35 | . . . . . . . . 1 . . . . . . . . . . . 5 . . 24 5 . . . . Largest Group 16 | . . . . . . . . 1 . . . . . . . . . . . 5 . . 16 14 14 13 3 . Highest-Rated Group 966 | . . . . . . . . 26 . . . . . . . . . . . 267 . . 791 966 966 807 221 . Highest-Rated Ally 159 | . . . . . . . . 26 . . . . . . . . . . . 64 . . 159 159 159 96 96 . Total Orders 8 | . . . . . . . . 1 . . . . . . . . . . . 2 . . 2 1 . . 2 . STAY 2 | . . . . . . . . 1 . . . . . . . . . . . . . . 1 . . . . . FOLLOW 2 | . . . . . . . . . . . . . . . . . . . . . . . 1 . . . 1 . GUARD 4 | . . . . . . . . . . . . . . . . . . . . 2 . . . 1 . . 1 . Ally Attacks 268 | . . . . . . . . . . . . . . . . . . . . 27 . . 90 19 5 99 28 . Total Damage 7950 | . . . . . . . . . . . . . . . . . . . . 1034 . . 2513 469 183 2659 1092 . Kills 32 | . . . . . . . . . . . . . . . . . . . . 2 . . 12 1 2 11 4 . Allies Corrupted . | . . . . . . . . . . . . . . . . . . . . . . . . . . . . . Allies Melted 1 | . . . . . . . . . . . . . . . . . . . . 1 . . . . . . . . Intel | -11 -10 -10 -9 -9 -9 -8 -8 -7 -7 -7 -6 -6 -6 -6 -6 -5 -5 -5 -5 -5 -4 -4 -4 -4 -4 -3 -2 -1 ------- Run | Yrd Mat Min Mat Min Exi Min Mat Fac Was Fac Fac Was Fac Low Zio Pro Fac Upp Upp War Pro Fac Ext Cet Arc Res Res Acc Active Infowar (turns) 8481 | . . . . . . . . 977 76 393 608 52 667 23 49 152 126 198 180 874 131 770 1142 318 213 385 516 631 Optics 3703 | . . . . . . . . . . . . . . . . . . . . . . 498 1142 318 213 385 516 631 Terrain 228 | . . . . . . . . 228 . . . . . . . . . . . . . . . . . . . . Structural 7987 | . . . . . . . . 752 76 393 608 52 667 23 49 152 126 198 180 874 131 695 1018 318 213 385 516 561 ECM 39 | . . . . . . . . . . . . . . . . . . . . . . 39 . . . . . . Robot Analysis Total . | . . . . . . . . . . . . . . . . . . . . . . . . . . . . . Derelict Logs Recovered 5 | . . 2 . 2 . . . . . . . . . . . 1 . . . . . . . . . . . . Drone Launches . | . . . . . . . . . . . . . . . . . . . . . . . . . . . . . Drone Recoveries . | . . . . . . . . . . . . . . . . . . . . . . . . . . . . . Exploration | -11 -10 -10 -9 -9 -9 -8 -8 -7 -7 -7 -6 -6 -6 -6 -6 -5 -5 -5 -5 -5 -4 -4 -4 -4 -4 -3 -2 -1 ------------- Run | Yrd Mat Min Mat Min Exi Min Mat Fac Was Fac Fac Was Fac Low Zio Pro Fac Upp Upp War Pro Fac Ext Cet Arc Res Res Acc Turns Passed 9806 | 27 333 202 25 121 141 51 146 1104 76 545 608 52 667 23 49 152 126 198 180 874 131 770 1142 318 213 385 516 631 Spaces Moved 12066 | 48 580 464 67 312 250 104 291 1633 123 731 684 82 772 37 87 236 188 258 327 1084 209 646 864 103 158 450 543 735 Core 505 | 48 381 . . . . . . . . . . . . . . . . . . 6 . . 1 . . . . 69 Treads . | . . . . . . . . . . . . . . . . . . . . . . . . . . . . . Legs 2712 | . . . . . 101 104 291 1582 113 521 . . . . . . . . . . . . . . . . . . Wheels . | . . . . . . . . . . . . . . . . . . . . . . . . . . . . . Hover 7658 | . . . . . . . . 51 10 210 684 82 772 37 87 236 188 258 327 1078 209 646 863 103 158 450 543 666 Flight 1191 | . 199 464 67 312 149 . . . . . . . . . . . . . . . . . . . . . . . Fastest Speed 37 | 50 37 37 37 37 37 45 45 45 45 45 52 52 52 56 56 56 52 52 52 52 52 52 52 52 52 45 42 47 Average Speed 49 | 50 45 39 37 37 54 47 45 45 46 48 52 52 55 56 56 56 52 52 52 53 52 52 52 52 52 45 45 49 Slowest Speed 350 | 50 50 40 37 37 90 90 45 60 90 180 56 52 56 56 56 56 52 52 52 350 52 52 350 52 52 52 47 100 Overloaded Moves 2623 | . . . . . 19 98 291 1582 112 521 . . . . . . . . . . . . . . . . . . Propulsion Burnouts . | . . . . . . . . . . . . . . . . . . . . . . . . . . . . . Robots Hopped 5 | . 1 3 1 . . . . . . . . . . . . . . . . . . . . . . . . . Potential Cave-ins 12 | . . . . . . . . . . . . . . . . . . . . . . . 8 . . . . 4 Cave-ins Triggered . | . . . . . . . . . . . . . . . . . . . . . . . . . . . . . Exploration Rate (%) 41 | 3 73 82 12 58 61 41 34 34 97 18 15 70 21 8 11 44 5 47 61 65 40 20 69 67 84 10 24 18 Regions Visited 28 Branch Regions 14 Pre-discovered Areas 1 | . . . . 1 . . . . . . . . . . . . . . . . . . . . . . . . Known Exits Taken 8 | . . . 1 . . . . . . 1 . . 1 . . 1 1 . . . . 1 . . . 1 1 . Unknown Exits Taken 16 | 1 1 1 . 1 1 1 1 . . . . . . 1 1 . . 1 1 1 1 . 1 1 1 . . . Scrap Searched 5 | . . 1 . 1 . . . . . . . . . . . . . 1 1 . 1 . . . . . . . Spaces Dug 140 | . 8 . . . . . 1 29 . 8 14 . 15 . . 2 5 1 . . 2 12 5 . . 4 7 27 Terrain Destroyed 336 | . 8 . . . . . 1 29 . 8 14 . 22 . . 2 5 44 . . 22 12 114 . . 4 9 42 Melee 132 | . . . . . . . 1 29 . 8 14 . 15 . . 2 5 1 . . 2 12 5 . . 4 7 27 Projectile . | . . . . . . . . . . . . . . . . . . . . . . . . . . . . . AOE 204 | . 8 . . . . . . . . . . . 7 . . . . 43 . . 20 . 109 . . . 2 15 Terrain Rammed . | . . . . . . . . . . . . . . . . . . . . . . . . . . . . . Walls Destroyed . | . . . . . . . . . . . . . . . . . . . . . . . . . . . . . Machines Disabled . | . . . . . . . . . . . . . . . . . . . . . . . . . . . . . Actions | -11 -10 -10 -9 -9 -9 -8 -8 -7 -7 -7 -6 -6 -6 -6 -6 -5 -5 -5 -5 -5 -4 -4 -4 -4 -4 -3 -2 -1 --------- Run | Yrd Mat Min Mat Min Exi Min Mat Fac Was Fac Fac Was Fac Low Zio Pro Fac Upp Upp War Pro Fac Ext Cet Arc Res Res Acc Total 15104 | 50 612 472 65 317 253 104 298 1910 137 829 888 90 929 38 86 244 199 307 331 1309 219 1028 1463 354 264 593 783 932 Wait 2246 | . 3 1 . 2 . . . 192 5 24 155 9 74 2 . . . 35 . 139 . 325 489 246 84 117 208 136 Move 12030 | 47 577 457 64 311 249 103 290 1633 122 730 684 81 771 36 86 235 187 257 326 1083 208 645 863 102 157 449 542 735 Hop 5 | . 1 3 1 . . . . . . . . . . . . . . . . . . . . . . . . . Pick Up 25 | 3 3 2 . 2 . . . 2 1 1 1 . 2 . . . 1 . . 1 . 3 1 . 1 . 1 . Fast Attach 65 | . 4 1 . . 2 . 2 18 2 4 4 . 3 . . . . . . 1 . 6 4 . 5 1 4 4 Attach 10 | . 2 1 . . . . . 1 . . 1 . . . . . 1 1 . . . 1 . . . . . 2 Detach 8 | . . . . . . . . 3 1 . . . 1 . . . . 1 . . . 1 . . . . . 1 Swap 45 | . 2 1 . . . . 2 2 . 6 . . 7 . . . . 1 . 1 3 1 8 . 3 3 5 . Drop 48 | . . 1 . 2 2 . 1 9 3 3 4 . 7 . . . . . . 2 . 3 1 . 2 1 3 4 Fire 340 | . 17 5 . . . . 1 10 . 36 20 . 36 . . 6 . 10 5 67 6 30 47 6 4 18 11 5 Melee 222 | . . . . . . . 2 40 3 25 19 . 28 . . 3 10 2 . . 2 13 11 . 8 4 9 43 Ram 5 | . 3 . . . . . . . . . . . . . . . . . . . . . . . . . . 2 Kick 1 | . . . . . . 1 . . . . . . . . . . . . . . . . . . . . . . Crush . | . . . . . . . . . . . . . . . . . . . . . . . . . . . . . Escape Stasis 2 | . . . . . . . . . . . . . . . . . . . . . . . 2 . . . . . Rewire 52 | . . . . . . . . . . . . . . . . . . . . 15 . . 37 . . . . . Trap . | . . . . . . . . . . . . . . . . . . . . . . . . . . . . . Miscellaneous . | . . . . . . . . . . . . . . . . . . . . . . . . . . . . . Route ------- -11/Scrapyard -10/Materials (discovered 4 exits: [*Mat x3] / [*Min]) -10/Mines -9/Materials (discovered 2 exits: *Min x2) -9/Mines -9/Exiles -8/Mines -8/Materials -7/Factory -7/Waste -7/Factory (discovered 5 exits: *Fac x4 / [*Low]) -6/Factory (discovered 6 exits: Fac x4 / Low x2) -6/Waste -6/Factory (discovered 6 exits: Fac x4 / *Low x2) -6/Lower Caves -6/Zion -5/Proximity Caves -5/Factory (discovered 2 exits: *Upp x2) -5/Upper Caves -5/Upper Caves (discovered 2 exits: *Fac / *War) -5/Warlord -4/Proximity Caves -4/Factory (discovered 6 exits: *Res x2 / Upp x2 / *Ext x2) -4/Extension (discovered 2 exits: *Res / *Cet) -4/Cetus -4/Archives (discovered 3 exits: *Res / [*Hub x2]) -3/Research (discovered 4 exits: *Res x3 / [*Arm]) -2/Research (discovered 3 exits: *Acc x3) -1/Access (discovered 2 exits: Sur / Com) History --------- Turn | Location | Event 3 | -11/Scrapyard | Discovered new exit (range 15) 28 | -11/Scrapyard | Entered Materials 134 | -10/Materials | Discovered new exit (range 13) 141 | -10/Materials | Discovered new exit (range 16) 238 | -10/Materials | Discovered new exit (range 7) 318 | -10/Materials | Build established: Mutant 327 | -10/Materials | Discovered new exit (range 16) 347 | -10/Materials | Core integrity fell below 50% 361 | -10/Materials | Entered Mines 467 | -10/Mines | Learned 2 Materials zone layouts 559 | -10/Mines | Found a damaged Exp. Sensor Array with a note attached 562 | -10/Mines | Discovered new exit (range 5) 563 | -10/Mines | Entered Materials 563 | -9/Materials | Evolved 2 slots: Utility x2 564 | -9/Materials | Identified exit to Mines 588 | -9/Materials | Entered Mines 591 | -9/Mines | Met a Derelict who couldn't figure out how to use a Trap Extractor 621 | -9/Mines | Learned location of Zion (-6) 665 | -9/Mines | Received a Rocket Launcher from a helpful Derelict 679 | -9/Mines | Learned Materials terminal intel 707 | -9/Mines | Deemed a non-threat by the Exiles lab entrance 707 | -9/Mines | Discovered new exit (range 5) 709 | -9/Mines | Entered Exiles 719 | -9/Exiles | Met 8R-AWN 725 | -9/Exiles | Met EX-HEX 737 | -9/Exiles | Met EX-BIN 741 | -9/Exiles | Aligned with FarCom system 742 | -9/Exiles | Given EX-Vault access code 751 | -9/Exiles | Opened EX-Vault 766 | -9/Exiles | Found Potential Leg 768 | -9/Exiles | Found Potential Leg 778 | -9/Exiles | Warned to stay clear of 0b10 Research branches 808 | -9/Exiles | Met EX-DEC 839 | -9/Exiles | Discovered new exit (range 14) 850 | -9/Exiles | Left Exiles lab with Potential Leg 850 | -9/Exiles | Entered Mines 892 | -8/Mines | Discovered new exit (range 15) 901 | -8/Mines | Entered Materials 901 | -8/Materials | Evolved 2 slots: Utility x2 902 | -8/Materials | Loaded intel: 12 terminal locations 1045 | -8/Materials | Discovered new exit (range 4) 1047 | -8/Materials | Entered Factory 1047 | -7/Factory | Evolved 2 slots: Utility x2 1132 | -7/Factory | Discovered new exit (range 5) 1708 | -7/Factory | Build established: Hacker-Mutant 1978 | -7/Factory | Fabricated Hacking Suite (x1) 2003 | -7/Factory | Fabricated Hacking Suite? 2072 | -7/Factory | Fabricated Hacking Suite (x1) 2085 | -7/Factory | Fabricated Hacking Suite (x1) 2117 | -7/Factory | Fabricated Gravmag Array (x1) 2151 | -7/Factory | Sucked down chute 2151 | -7/Factory | Entered Waste 2166 | -7/Waste | EMP discharged 2170 | -7/Waste | Spotted C-40 Crusher 2190 | -7/Waste | Spotted C-40 Crusher 2201 | -7/Waste | Spotted C-40 Crusher 2201 | -7/Waste | Spotted C-40 Crusher 2206 | -7/Waste | Spotted C-40 Crusher 2207 | -7/Waste | Spotted C-40 Crusher 2220 | -7/Waste | Discovered new exit (range 10) 2227 | -7/Waste | Entered Factory 2280 | -7/Factory | Fabricated Hyp. Gauss Cannon (x2) 2367 | -7/Factory | Build established: Wizard-Mutant 2569 | -7/Factory | Discovered new exit (range 15) 2739 | -7/Factory | Identified exit to Factory 2772 | -7/Factory | Entered another Factory area 2772 | -6/Factory | Evolved 2 slots: Propulsion x2 2788 | -6/Factory | Identified exit to Lower Caves 2878 | -6/Factory | Fabricated Adv. Targeting Computer? 2993 | -6/Factory | Identified exit to Factory 3241 | -6/Factory | Garrison activated, responded to threat 3380 | -6/Factory | Sucked down chute 3380 | -6/Factory | Entered Waste 3395 | -6/Waste | EMP discharged 3396 | -6/Waste | Spotted C-40 Crusher 3399 | -6/Waste | Spotted C-40 Crusher 3399 | -6/Waste | Spotted C-40 Crusher 3405 | -6/Waste | Spotted C-40 Crusher 3426 | -6/Waste | Discovered new exit (range 11) 3432 | -6/Waste | Entered Factory 3482 | -6/Factory | Fabricated Gravmag Array (x1) 3812 | -6/Factory | Destroyed 8 combat bots 3835 | -6/Factory | Repaired Hyp. Gauss Cannon 4099 | -6/Factory | Entered Lower Caves 4117 | -6/Lower Caves | A Derelict revealed a hidden shortcut to a safe place 4122 | -6/Lower Caves | Entered Zion 4147 | -6/Zion | System corruption cleaned by Quarantine Array 4163 | -6/Zion | Discovered new exit (range 11) 4171 | -6/Zion | Entered Proximity Caves 4290 | -5/Proximity Caves | Learned 8 Factory zone layouts 4314 | -5/Proximity Caves | Discovered exit to Factory (range 7) 4323 | -5/Proximity Caves | Entered Factory 4323 | -5/Factory | Evolved 2 slots: Propulsion x2 4334 | -5/Factory | Spotted B-75 Beast 4336 | -5/Factory | Identified exit to Upper Caves 4449 | -5/Factory | Entered Upper Caves 4546 | -5/Upper Caves | Spotted B-75 Beast 4642 | -5/Upper Caves | Discovered new exit (range 8) 4647 | -5/Upper Caves | Entered another Upper Caves area 4654 | -5/Upper Caves | Discovered new exit (range 3) 4818 | -5/Upper Caves | Discovered new exit (range 16) 4827 | -5/Upper Caves | Entered Warlord 5081 | -5/Warlord | Met Warlord 5106 | -5/Warlord | Warlord's base attacked by MAIN.C 5291 | -5/Warlord | Lost 3 allies 5319 | -5/Warlord | Spotted B-75 Beast 5357 | -5/Warlord | Warlord forces counterattacked 5379 | -5/Warlord | Lost 4 allies 5419 | -5/Warlord | Opened side exit 5434 | -5/Warlord | Spotted Striker 5494 | -5/Warlord | Lost 8 allies 5513 | -5/Warlord | Spotted Executioner 5539 | -5/Warlord | Spotted Executioner 5601 | -5/Warlord | Lost 16 allies 5629 | -5/Warlord | Spotted Striker 5680 | -5/Warlord | Lost 4 allies 5697 | -5/Warlord | Discovered new exit (range 8) 5701 | -5/Warlord | Entered Proximity Caves 5704 | -4/Proximity Caves | Spotter reported a threat 5734 | -4/Proximity Caves | Spotter reported a threat 5757 | -4/Proximity Caves | Spotter reported a threat 5800 | -4/Proximity Caves | Spotted B-86 Titan 5814 | -4/Proximity Caves | Attracted the attention of an 0b10 checkpoint 5823 | -4/Proximity Caves | Spotter reported a threat 5830 | -4/Proximity Caves | Discovered new exit (range 2) 5832 | -4/Proximity Caves | Entered Factory 5832 | -4/Factory | Evolved 2 slots: Utility x2 5890 | -4/Factory | Repaired Gravmag Array 5964 | -4/Factory | Repaired Gravmag Array 6015 | -4/Factory | Repaired Gravmag Array 6082 | -4/Factory | Search patrols dispatched 6286 | -4/Factory | Repaired Hyp. Gauss Cannon 6371 | -4/Factory | Discovered new exit (range 16) 6373 | -4/Factory | Identified exit to Upper Caves 6373 | -4/Factory | Identified exit to Extension 6461 | -4/Factory | Discovered new exit (range 21) 6493 | -4/Factory | Build established: Wizard-Scout 6527 | -4/Factory | Repaired Hyp. Gauss Cannon 6602 | -4/Factory | Entered Extension 6873 | -4/Extension | Rescued a captive Derelict 6873 | -4/Extension | Rescued a captive Derelict 6915 | -4/Extension | Rescued a captive Derelict 7107 | -4/Extension | Lost 3 allies 7481 | -4/Extension | Rescued a captive Derelict 7481 | -4/Extension | Rescued a captive Derelict 7507 | -4/Extension | Rescued A7 7586 | -4/Extension | Rescued a captive Derelict 7689 | -4/Extension | Discovered new exit (range 10) 7690 | -4/Extension | Discovered new exit (range 6) 7727 | -4/Extension | Disrupted transfer network 7737 | -4/Extension | Build established: Commander-Scout 7744 | -4/Extension | Disrupted transfer network 7744 | -4/Extension | Entered Cetus 7744 | -4/Cetus | Accompanied by 11 allies (A7) 7749 | -4/Cetus | Acquired a Cetus Manufacturing Module code from A7 7753 | -4/Cetus | Spotted Cetus Guard 7753 | -4/Cetus | Spotted Cetus Guard 7753 | -4/Cetus | Spotted Cetus Guard 7753 | -4/Cetus | Spotted Cetus Guard 7783 | -4/Cetus | Destroyed Cetus Guard 7783 | -4/Cetus | Destroyed Cetus Guard 7786 | -4/Cetus | Destroyed Cetus Guard 7795 | -4/Cetus | Allies destroyed Cetus Guard 7817 | -4/Cetus | Started Cetus Manufacturing Module 7842 | -4/Cetus | Manufactured an Enhanced Grunt 7854 | -4/Cetus | Escorted A7 to Cetus Mainframe 7867 | -4/Cetus | Manufactured an Enhanced Grunt 7892 | -4/Cetus | Manufactured an Enhanced Grunt 7917 | -4/Cetus | Manufactured an Enhanced Grunt 7942 | -4/Cetus | Manufactured an Enhanced Grunt 7986 | -4/Cetus | Discovered new exit (range 22) 8062 | -4/Cetus | Entered Archives 8062 | -4/Archives | Accompanied by 14 allies (A7) 8067 | -4/Archives | Received a hacking code to weaken MAIN.C 8094 | -4/Archives | Discovered new exit (range 22) 8105 | -4/Archives | Discovered new exit (range 19) 8133 | -4/Archives | Discovered new exit (range 22) 8275 | -4/Archives | Entered Research 8275 | -3/Research | Accompanied by 13 allies 8275 | -3/Research | Evolved 2 slots: Propulsion x2 8421 | -3/Research | Identified exit to Research 8421 | -3/Research | Hacking Suite fried by hacking feedback 8438 | -3/Research | Build established: Wizard-Scout 8453 | -3/Research | Discovered new exit (range 19) 8638 | -3/Research | Lost 4 allies 8660 | -3/Research | Entered another Research area 8660 | -2/Research | Accompanied by 3 allies 8660 | -2/Research | Warlord forces began assault on 0b10 8660 | -2/Research | Evolved 2 slots: Utility x2 8665 | -2/Research | Spotted B-90 Cyclops 8674 | -2/Research | Identified exit to Access 8770 | -2/Research | Research machine network offline 9056 | -2/Research | Lost 3 allies 9132 | -2/Research | Lost 9 allies 9153 | -2/Research | Spotted Executioner 9160 | -2/Research | Spotted Striker 9162 | -2/Research | Spotted Striker 9176 | -2/Research | Entered Access 9176 | -1/Access | Evolved 2 slots: Power x1, Utility x1 9197 | -1/Access | Lost 3 allies 9252 | -1/Access | Identified exit to Command 9252 | -1/Access | Identified exit to Surface 9506 | -1/Access | Spotted B-99 Colossus 9604 | -1/Access | Lost 3 parts (3p) 9765 | -1/Access | System corruption reached 10% 9785 | -1/Access | Core integrity fell below 50% 9798 | -1/Access | Core integrity fell below 20% 9807 | -1/Access | Destroyed by S-43 Plague with Heavy Machine Gun Last Messages --------------- P-80 Master resets P-80 Master, system corruption cleaned. Phasing Sabre destroyed. Penetrated by Slug. W-44 Eye distress signal alerts nearby ally. Penetrated by Slug. R-10 Processor suffers critical hit (Destroy). R-10 Processor destroyed. Penetrated by Slug. R-10 Processor suffers critical hit (Destroy). Penetrated by Slug. Imp. System Shield destroyed. P-80 Master resets H-88 Terminator, system corruption cleaned. R-10 Processor collects Com. Wheel. Penetrated by Slug. R-10 Processor collects Com. Wheel. Slug penetrates Wall. Hacking Suite destroyed. Slug penetrates Wall. System corrupted: Heat flow error (+190). Slug penetrates Wall. Map ----- +----------------------------------------------------+ | """ # ### ##??????????????????????? | | " ]## #### ##??????????????????????? | | ## #### " + ??????????????? | | ## #### ### # ??????????????? | | ########## ####### ### ? # ??????????????? | | ########## #### ##????####??????????????? | | ????????## ##?# ##????####??????????????? | | ????????## ##?# ##??????????????????????? | | ????????## ##?# ##??????????????????????? | | ????????## ##?# ##??????????????????????? | | ????????## #### ##??????????????????????? | | ########## #### p ##??????????????????????? | | ##########+#### ##s###########?????????????? | | # ## # s #?????????????? | | # ## # #?????????????? | | #"" / # s #?????????????? | | #"" !!! ## # !! #?????????????? | | #"" =! ## # s #?????????????? | | #S !! ## p # s #?????????????? | | #"" ## # s s #?????????????? | | #"" ## p # #?????????????? | | #"" ## # #?????????????? | | # ## s # #?????????????? | | + ## # A #?????????????? | | # = = ## # p #?????????????? | | ####/########## ###@##########?????????????? | | % h ph p ?????????????????????? | | #???????????????????? | | w #???????????????????? | | #??????g????????????? | | g #??????g????????????? | | *! #??????gg???????????? | | =% k A R #???????????????????? | | ###################### ???????????????????? | | #########????????????# ???????????????????? | | ?????????????????????# ??????????????????? | | ?????????????????????# ??????????????????? | | ?????????????????????# ?????????????????? | | ?????????????????????# g?????????????????? | | ?????????????????????# u ?g??????????????? | | ?????????????????????############????????????????? | | ?????????????????????????????????????????????????? | | ?????????????????????????????????????????????????? | | ?????????????????????????????????????????????????? | | ?????????????????????????????????????????????????? | | ?????????????????????????????????????????????????? | | ?????????????????????????????????????????????????? | | ?????????????????????????????????????????????????? | | ?????????????????????????????????????????????????? | | ?????????????????????????????????????????????????? | +----------------------------------------------------+ Best States ------------- Heat Dissipation 52 Energy Generation 43 Energy Capacity 430 Matter Stores 300 Matter Capacity 300 Sight Range 22 Terrain Scan Range 14 Terrain Scan Density 160 ECM Strength 2 Resistance: KI 20 Resistance: TH 20 Resistance: EX 20 Resistance: EM 20 Resistance: I 20 Resistance: S 20 Resistance: P 20 Evasion (%) 66 Targeting Accuracy 16 Offensive Hacking 78 Defensive Hacking 24 Authchip Count 4 Item Schematics ----------------- Hacking Suite | -8/Materials | Hacked Gravmag Array | -7/Factory | Hacked Hyp. Gauss Cannon | -7/Factory | Hacked Adv. Targeting Computer | -6/Factory | Hacked Robot Schematics ------------------ None Fabricated ------------ Hacking Suite | x1 | -7/Factory | Authchip Hacking Suite | x1 | -7/Factory | Authchip Hacking Suite | x1 | -7/Factory | Authchip Hacking Suite | x1 | -7/Factory | Authchip Gravmag Array | x1 | -7/Factory Hyp. Gauss Cannon | x2 | -7/Factory Adv. Targeting Computer | x2 | -6/Factory Gravmag Array | x1 | -6/Factory Repaired ---------- Hyp. Gauss Cannon | 38% | -6/Factory Gravmag Array | 22% | -4/Factory Gravmag Array | 23% | -4/Factory Gravmag Array | 28% | -4/Factory Hyp. Gauss Cannon | 13% | -4/Factory Hyp. Gauss Cannon | 72% | -4/Factory Alien Tech Used ----------------- None Achievements -------------- None Challenges ------------ None Game ------ Seed DecoderAngularWarhead Manual? 0 Play Time 02:00:55 Cumulative 219.3 hours Start 2025.05.29 @ 21:32:31 End 2025.05.30 @ 00:24:00 Sessions 3 Manual Loads 0 Difficulty Adventurer Special Mode None Game No. 221 Rogue 33 Adventurer 176 Explorer 12 Win Type - Total 59 Types 17/1/16/2/12/0/4/2/0/5 Lore% 49 Gallery% 50 Achievement% 68 Wizard Run 0 Options --------- Layout 0 ASCII 0 Keyboard 0 Movement Numpad Keybinds 0 Fullscreen 2 Font 12/Smallcaps Map View 83x54 Zoom Use 0% Tactical HUD 0 Map Filters NONE Filters NONE Steam X RUN: 6fe319e6-8695-44b9-8ce9-b0b5909b88dd